fUST/lending_fUST_20240516
["ID","MTS","AMOUNT","RATE_DAILY","PERIOD"]
[327079912,1715791832227,-449.64478803,0.00019178,2]
[327079913,1715791832237,-500.0,0.00019178,2]
[327079914,1715791832246,-500.0,0.00019178,2]
[327079915,1715791832255,-178.400235,0.00019178,2]
[327079916,1715791832265,-655.9010736,0.00019965,2]
[327079917,1715791832274,-3060.90965728,0.00019998,2]
[327079918,1715791832284,-888.21620362,0.00019998,2]
[327079919,1715791832295,-725.7201463,0.00019998,2]
[327079920,1715791832306,-13493.64525392,0.00019999,2]
[327079921,1715791832318,-670.80087435,0.00019999,2]
[327079942,1715791838248,-281.09538641,0.00018087,2]
[327079943,1715791838256,-154.95314682,0.00018087,2]
[327079944,1715791838263,-8438.40153754,0.00019999,2]
[327079945,1715791838270,-500.0,0.00019999,2]
[327079946,1715791838278,-234.89011707,0.00019999,2]
[327079947,1715791838284,-572.41323264,0.00019999,2]
[327079948,1715791838292,-250.80403719,0.00019999,2]
[327079949,1715791838300,-4518.80821517,0.0002,2]
[327079950,1715791838313,-2971.49999999,0.0002,2]
[327079951,1715791838412,-3124.85128078,0.0002,2]
[327079952,1715791838421,-667.94871921,0.0002,2]
[327079953,1715791838432,-896.92493753,0.0002,2]
[327079954,1715791838441,-1994.28826324,0.0002,2]
[327079959,1715791840307,-292.60916471,0.00019998,2]
[327079960,1715791840317,-66000.54472373,0.0002,2]
[327079961,1715791840326,-499.86264339,0.0002,2]
[327079962,1715791840336,-401.14632131,0.00020691,2]
[327079963,1715791840345,-410.29046081,0.0002079,2]
[327079964,1715791840354,-3935.00798279,0.00020819,2]
[327079965,1715791840363,-1144.62219253,0.00020899,2]
[327079966,1715791840373,-1357.27531346,0.000209,2]
[327079967,1715791840381,-151.0,0.000209,2]
[327079968,1715791840391,-215.139294,0.000209,2]
[327079969,1715791840400,-151.0,0.000209,2]
[327079970,1715791840409,-151.0,0.000209,2]
[327079971,1715791840423,-151.0,0.000209,2]
[327079972,1715791840432,-495.0,0.00020909,2]
[327079973,1715791840441,-211.852,0.00020909,2]
[327079974,1715791840608,-151.315,0.00020909,2]
[327079975,1715791840618,-260.85435692,0.0002091,2]
[327079976,1715791840631,-155.71507156,0.00020913,2]
[327079977,1715791840641,-2630.79585312,0.00020913,2]
[327079978,1715791840651,-621.79505368,0.00020963,2]
[327079979,1715791840661,-6033.76597035,0.00021,2]
[327079980,1715791840671,-335.33360947,0.00021,2]
[327079981,1715791840680,-1042.71154477,0.00021,2]
[327079982,1715791840690,-238.65042414,0.00021015,2]
[327079983,1715791840699,-618.9,0.00021153,2]
[327079984,1715791840708,-150.0,0.0002151,3]
[327079985,1715791840718,-432.73324107,0.00021586,2]
[327079986,1715791840727,-233.78116855,0.00021586,2]
[327079987,1715791840736,-1348.81996301,0.00021587,2]
[327079988,1715791840745,-284.69868819,0.00021587,2]
[327079989,1715791840755,-618.9,0.00021621,2]
[327079990,1715791840764,-150.0,0.00021665,2]
[327079991,1715791840773,-232.261,0.00021665,2]
[327079992,1715791840782,-250.0,0.00021665,2]
[327079993,1715791840791,-150.351,0.00021665,2]
[327079994,1715791840800,-246.34353574,0.00021698,2]
[327079995,1715791840810,-154.82968734,0.00021715,2]
[327079996,1715791840819,-154.82968734,0.00021715,2]
[327079997,1715791840828,-2000.0,0.00021715,2]
[327079998,1715791840838,-444.13214,0.00021815,2]
[327079999,1715791840847,-444.13214,0.00021815,2]
[327080000,1715791840857,-151.0,0.00021815,2]
[327080001,1715791840866,-151.0,0.00021815,2]
[327080002,1715791840876,-151.0,0.00021815,2]
[327080003,1715791840886,-9797.09626802,0.00021815,3]
[327080004,1715791841509,-29741.94722585,0.00021815,3]
[327080005,1715791841521,-49348.95650613,0.00021815,3]
[327080006,1715791841530,-281.0,0.000219,2]
[327080007,1715791841539,-705.59322207,0.00021911,2]
[327080008,1715791841549,-346.70990189,0.00021911,2]
[327080009,1715791841563,-1883.78526322,0.00021912,2]
[327080010,1715791841572,-408.247789,0.00021912,2]
[327080011,1715791841582,-400.0,0.00021912,2]
[327080012,1715791841592,-818.70646143,0.00021912,2]
[327080013,1715791841600,-853.99590348,0.00021912,2]
[327080014,1715791841765,284.88862026,9.999e-05,2]
[327080036,1715791845042,154.79876161,9.999e-05,2]
[327080078,1715791846110,-154.79876161,0.00018087,2]
[327080079,1715791846120,-154.79876161,0.00018087,2]
[327080080,1715791846129,-3245.40247678,0.00018087,2]
[327080081,1715791865258,154.79876161,9.999e-05,2]
[327080082,1715791870347,154.79876161,9.999e-05,2]
[327080083,1715791871130,364.75655899,9.999e-05,2]
[327080084,1715791881596,522.94149242,9.999e-05,2]
[327080086,1715791882334,154.79876161,9.999e-05,2]
[327080087,1715791883774,1338.26302922,9.999e-05,2]
[327080088,1715791885138,363.18489585,9.999e-05,2]
[327080089,1715791887259,301.58617822,9.999e-05,2]
[327080091,1715791904447,222.43077866,9.999e-05,2]
[327080095,1715792019189,2632.0294236,0.00017292,2]
[327080097,1715792109760,3370.30746431,0.00017292,2]
[327080098,1715792133960,3370.30746431,0.00017292,2]
[327080099,1715792157133,3370.30746431,0.00017292,2]
[327080100,1715792178187,2529.70760707,0.00017292,2]
[327080126,1715792316450,156.36643608,9.999e-05,2]
[327080149,1715792420693,308.332105,0.00017416,2]
[327080151,1715792635602,154.81422293,9.999e-05,2]
[327080152,1715792656981,24900.0,0.00017179,2]
[327080153,1715792679313,273.93944197,0.000165,2]
[327080154,1715792841164,-18342.28610091,0.00018051,2]
[327080155,1715792841189,-6959.20597892,0.00018051,2]
[327080156,1715792841208,-3060.90965728,0.00018051,2]
[327080157,1715792841227,-626.78744052,0.00018052,2]
[327080158,1715792841247,-1345.02957866,0.00018052,2]
[327080159,1715792842100,-2402.75359448,0.00018052,2]
[327080160,1715792853124,-156.36643608,0.00018051,2]
[327080161,1715792853145,-10503.99952427,0.00018051,2]
[327080162,1715792853168,-4926.11686091,0.00018052,2]
[327080163,1715792918231,308.332105,0.0001706,2]
[327080216,1715793032544,-7890.55584427,0.00018049,2]
[327080220,1715793032553,-26640.28044639,0.0001805,2]
[327080222,1715793032563,-50698.30876609,0.00018052,2]
[327080226,1715793032572,-589.89623022,0.00018053,2]
[327080229,1715793032581,-273.76234099,0.00018056,2]
[327080232,1715793032591,-156.07976555,0.00018059,2]
[327080235,1715793032600,-3304.6698869,0.00018087,2]
[327080372,1715793038667,-5.87622053,0.00018087,2]
[327080373,1715793038681,-3544.83883026,0.00018087,2]
[327080374,1715793038691,-154.9063322,0.00018087,2]
[327080375,1715793038700,-156.3329013,0.00018087,2]
[327080376,1715793038709,-156.36643608,0.00018896,2]
[327080377,1715793038719,-6959.20597892,0.00018897,2]
[327080378,1715793038728,-417.85829368,0.00018897,2]
[327080379,1715793038737,-9556.33105858,0.00018898,2]
[327080380,1715793038746,-1123.31217034,0.000189,2]
[327080381,1715793038756,-930.78580745,0.00018998,2]
[327080382,1715793038766,-500.0,0.00019178,2]
[327080383,1715793038782,-438.84942089,0.00019178,2]
[327080384,1715793038813,-500.0,0.00019178,2]
[327080385,1715793038850,-179.480411,0.00019178,2]
[327080386,1715793038894,-178.400235,0.00019178,2]
[327080387,1715793038932,-725.7201463,0.00019998,2]
[327080388,1715793038952,-157.09848181,0.00019998,2]
[327080389,1715793038980,-2902.32724683,0.00019998,2]
[327080390,1715793039008,-2586.43189523,0.00019998,2]
[327080391,1715793039027,-154.81422293,0.00019998,2]
[327080392,1715793039038,-722.11383246,0.00019999,2]
[327080393,1715793039048,-2004.11949604,0.00019999,2]
[327080394,1715793039058,-245.31995685,0.00019999,2]
[327080395,1715793039068,-321.7731588,0.00019999,2]
[327080396,1715793039077,-5856.48001361,0.0002,3]
[327080397,1715793039087,-1564.87365674,0.0002,2]
[327080398,1715793039096,-18537.70026333,0.0002,2]
[327080414,1715793041757,-6177.658017,0.0002,2]
[327080415,1715793041769,-16181.68226387,0.0002,2]
[327080449,1715793046487,-156.36643608,0.00018086,2]
[327080450,1715793046497,-126.13356392,0.0002,2]
[327080451,1715793046508,-3237.07792439,0.0002,2]
[327080452,1715793046519,-261.81,0.0002,2]
[327080453,1715793046530,-23431.022249,0.0002,2]
[327080458,1715793115501,1046.00338095,9.999e-05,2]
[327080459,1715793125508,1032.67835379,0.00018,2]
[327080460,1715793127613,781.5,9.999e-05,2]
[327080461,1715793144734,395.12068195,9.999e-05,2]
[327080467,1715793204839,24900.0,0.0001706,2]
[327080475,1715793333130,8430.0441852,0.00023,30]
[327080488,1715793808110,156.36643608,9.999e-05,2]
[327080496,1715793899622,348.21524473,9.999e-05,2]
[327080508,1715794028441,-156.36643608,0.00018696,2]
[327080509,1715794028463,-348.21524473,0.00018697,2]
[327080510,1715794028485,-1263.97171744,0.00018697,2]
[327080511,1715794047103,-9556.33105858,0.00018696,2]
[327080512,1715794047127,-6626.58412683,0.00018697,2]
[327080513,1715794047148,-725.7201463,0.00018698,2]
[327080514,1715794047170,-181.42014251,0.00018699,2]
[327080515,1715794047192,-156.36643608,0.00018699,2]
[327080516,1715794047212,-8486.39536771,0.000187,2]
[327080522,1715794194700,1600.0216467,0.00017701,2]
[327080524,1715794234346,-2245.61145002,0.00018696,2]
[327080557,1715794239411,-730.18962715,0.00018695,2]
[327080558,1715794239618,-2078.37845745,0.00018695,2]
[327080588,1715794242203,-1786.97,0.00018695,2]
[327080616,1715794243896,-2605.99780536,0.00018695,2]
[327080698,1715794246756,-156.36643608,0.00018694,2]
[327080699,1715794246766,-2354.79516862,0.00018695,2]
[327080700,1715794246775,-181.42014251,0.00018695,2]
[327080701,1715794246784,-5644.94439425,0.00018696,2]
[327080702,1715794246794,-725.7201463,0.00018699,2]
[327080703,1715794246803,-7706.75371224,0.000187,2]
[327080704,1715794246814,-9161.1,0.000187,2]
[327080705,1715794246825,-1562.84300676,0.000187,2]
[327080706,1715794246836,-5425.95374349,0.000187,2]
[327080707,1715794246849,-67656.9541698,0.000187,2]
[327080708,1715794246858,-26590.0,0.000187,2]
[327080709,1715794246869,-701.14576362,0.00018707,2]
[327080710,1715794246881,-100000.0,0.000188,2]
[327080711,1715794246891,-405.11550725,0.00019178,2]
[327080712,1715794246902,-500.0,0.00019178,2]
[327080713,1715794246911,-500.0,0.00019178,2]
[327080714,1715794246920,-500.0,0.00019178,2]
[327080715,1715794246929,-500.0,0.00019178,2]
[327080716,1715794246938,-242.51596312,0.00019178,2]
[327080717,1715794246947,-500.0,0.00019178,2]
[327080718,1715794246957,-500.0,0.00019178,2]
[327080719,1715794246966,-500.0,0.00019178,2]
[327080720,1715794246975,-500.0,0.00019178,2]
[327080721,1715794246984,-500.0,0.00019178,2]
[327080722,1715794246993,-500.0,0.00019178,2]
[327080723,1715794247002,-500.0,0.00019178,2]
[327080724,1715794247011,-543.66495657,0.00019178,2]
[327080725,1715794247020,-543.66495657,0.00019178,2]
[327080726,1715794247029,-543.66495657,0.00019178,2]
[327080727,1715794247038,-543.66495657,0.00019178,2]
[327080728,1715794247046,-179.480411,0.00019178,2]
[327080729,1715794247056,-701.14576357,0.00019856,2]
[327080730,1715794247065,-3935.00798279,0.00019897,2]
[327080731,1715794247074,-5704.63201621,0.00019998,2]
[327080732,1715794247083,-225.87769874,0.00019998,2]
[327080733,1715794247092,-512.66937259,0.00019998,2]
[327080734,1715794247102,-11074.49886275,0.00019999,3]
[327080735,1715794247111,-10365.63968977,0.00019999,2]
[327080736,1715794247120,-80000.0,0.0002,2]
[327080737,1715794247129,-67994.83298697,0.0002,2]
[327080738,1715794247138,-154.79876161,0.0002,2]
[327080739,1715794247147,-286.11237148,0.0002,2]
[327080740,1715794247157,-1564.87365674,0.0002,2]
[327080741,1715794247166,-200.0,0.0002,2]
[327080742,1715794247175,-12703.0,0.0002,2]
[327080743,1715794247184,-515.7,0.00020819,2]
[327080744,1715794247193,-150.0,0.00020819,2]
[327080745,1715794247203,-1111.95278469,0.000209,2]
[327080746,1715794247212,-154.82968734,0.00020908,2]
[327080747,1715794247221,-156.5360369,0.00020911,2]
[327080748,1715794247230,-250.70868332,0.00020911,2]
[327080749,1715794247239,-155.02731003,0.00020911,2]
[327080750,1715794247248,-154.95082741,0.00020911,2]
[327080751,1715794247257,-157.36692005,0.00020911,2]
[327080752,1715794247266,-639.02644372,0.00020911,2]
[327080753,1715794247433,-155.08229322,0.00020912,2]
[327080754,1715794247444,-309.44301185,0.00020912,2]
[327080755,1715794247454,-11776.99018312,0.00020912,2]
[327080756,1715794247463,-2064.61434666,0.00021,2]
[327080757,1715794247472,-306.0,0.00021,2]
[327080758,1715794247481,-701.14576357,0.00021005,2]
[327080759,1715794247490,-150.374,0.00021011,2]
[327080760,1715794247499,-150.909,0.00021011,2]
[327080761,1715794247508,-150.0,0.00021011,2]
[327080762,1715794247517,-299.649,0.00021011,2]
[327080763,1715794247526,-150.0,0.00021029,2]
[327080764,1715794247535,-495.0,0.00021029,2]
[327080765,1715794247544,-515.7,0.00021308,2]
[327080766,1715794247554,-150.0,0.00021308,2]
[327080767,1715794247563,-1000.0,0.000215,2]
[327080768,1715794247572,-65005.60100396,0.00021613,3]
[327080770,1715794336285,158.42042026,9.999e-05,2]
[327080772,1715794397977,1615.76800911,9.999e-05,2]
[327080780,1715794882761,181.42014251,9.999e-05,2]
[327080781,1715794981295,1580.67651805,9.999e-05,2]
[327080782,1715794993743,284.88862026,9.999e-05,2]
[327080783,1715794994555,1338.26302922,9.999e-05,2]
[327080784,1715795015990,942.02546264,0.00015,2]
[327080785,1715795021957,330.80243403,9.999e-05,2]
[327080786,1715795025783,2788.0553055,9.999e-05,2]
[327080787,1715795032549,154.79876161,9.999e-05,2]
[327080788,1715795037363,1402.37929891,9.999e-05,2]
[327080789,1715795041379,1106.37126726,0.00018,2]
[327080791,1715795230151,-181.42014251,0.00019119,2]
[327080792,1715795230171,-156.36643608,0.0001912,2]
[327080793,1715795230192,-178.400235,0.00019178,2]
[327080794,1715795230213,-741.30185646,0.00019513,2]
[327080795,1715795230233,-9556.33105858,0.00019999,2]
[327080796,1715795230253,-5335.35413802,0.0002,2]
[327080797,1715795241147,-2788.86654465,0.00019998,2]
[327081500,1715795438179,-181.42014251,0.00018899,2]
[327081502,1715795438189,-494.20123764,0.000189,2]
[327081504,1715795438198,-438.21610224,0.000199,2]
[327081506,1715795438207,-370.79,0.0001999,3]
[327081508,1715795438216,-180.70064554,0.00019998,2]
[327081511,1715795438228,-286.45326053,0.00019998,2]
[327081513,1715795438239,-9089.17715251,0.00019998,2]
[327081515,1715795438249,-725.7201463,0.00019998,2]
[327081517,1715795438258,-8661.34176898,0.00019999,2]
[327081519,1715795438267,-500.0,0.00019999,2]
[327081521,1715795438277,-500.0,0.00019999,2]
[327081523,1715795438286,-500.0,0.00019999,2]
[327081525,1715795438296,-500.0,0.00019999,2]
[327081527,1715795438305,-500.0,0.00019999,2]
[327081529,1715795438314,-500.0,0.00019999,2]
[327081531,1715795438324,-500.0,0.00019999,2]
[327081533,1715795438333,-500.0,0.00019999,2]
[327081535,1715795438343,-500.0,0.00019999,2]
[327081537,1715795438352,-500.0,0.00019999,2]
[327081539,1715795438362,-500.0,0.00019999,2]
[327081541,1715795438371,-270.92235366,0.00019999,2]
[327081543,1715795438380,-500.0,0.00019999,2]
[327081545,1715795438389,-500.0,0.00019999,2]
[327081547,1715795438399,-500.0,0.00019999,2]
[327081549,1715795438408,-500.0,0.00019999,2]
[327081551,1715795438417,-500.0,0.00019999,2]
[327081553,1715795438426,-500.0,0.00019999,2]
[327081555,1715795438435,-500.0,0.00019999,2]
[327081557,1715795438445,-500.0,0.00019999,2]
[327081559,1715795438454,-500.0,0.00019999,2]
[327081561,1715795438463,-500.0,0.00019999,2]
[327081563,1715795438473,-5299.61955798,0.0002,2]
[327081565,1715795438483,-22051.09560369,0.0002,2]
[327081578,1715795438595,-44998.34485105,0.0002,2]
[327081580,1715795438605,-12703.0,0.0002,2]
[327081582,1715795438614,-500.0,0.00020132,2]
[327081584,1715795438624,-500.0,0.00020132,2]
[327081586,1715795438633,-500.0,0.00020132,2]
[327081588,1715795438646,-510.33835251,0.00020132,2]
[327081590,1715795438656,-361.57357964,0.00020132,2]
[327081592,1715795438665,-6864.7997049,0.00020133,2]
[327081739,1715795440208,-14856.43739437,0.00020133,2]
[327081953,1715795443169,-392.1959995,0.00020133,2]
[327081955,1715795443181,-2994.50196763,0.00020133,2]
[327081957,1715795443192,-456.96362104,0.00020133,2]
[327082273,1715795447375,-487.25,0.00020133,2]
[327082274,1715795447389,-712.0,0.00020133,2]
[327082275,1715795482352,689.90178801,9.999e-05,2]
[327082280,1715796078967,181.42014251,9.999e-05,2]
[327082284,1715796279082,503.5,0.0001801,2]
[327082296,1715796429110,-181.42014251,0.00018305,2]
[327082297,1715796429131,-3431.73938181,0.00018305,2]
[327082298,1715796442091,-21813.45783271,0.00018305,2]
[327082332,1715796632236,-383.43908946,0.00018213,2]
[327082334,1715796632246,-727.37297346,0.00018307,2]
[327082336,1715796632260,-8828.95808512,0.00018307,2]
[327082339,1715796632269,-27915.10043667,0.00018308,2]
[327082341,1715796632279,-5923.29639355,0.00018313,2]
[327082385,1715796638406,-18976.70360645,0.00018313,2]
[327082387,1715796638415,-181.42014251,0.00018899,2]
[327082389,1715796638424,-437.04615975,0.000189,2]
[327082391,1715796638433,-179.480411,0.00019178,2]
[327082393,1715796638443,-383.43908945,0.00019393,2]
[327082395,1715796638451,-190.028436,0.00019454,2]
[327082397,1715796638461,-3935.00798279,0.00019959,2]
[327082399,1715796638470,-150.0,0.00019987,2]
[327082401,1715796638479,-500.0,0.00019999,2]
[327082403,1715796638488,-500.0,0.00019999,2]
[327082405,1715796638498,-210.40592984,0.00019999,2]
[327082407,1715796638507,-500.0,0.00019999,2]
[327082409,1715796638518,-500.0,0.00019999,2]
[327082411,1715796638527,-500.0,0.00019999,2]
[327082413,1715796638536,-500.0,0.00019999,2]
[327082415,1715796638545,-500.0,0.00019999,2]
[327082417,1715796638554,-500.0,0.00019999,2]
[327082418,1715796638565,-500.0,0.00019999,2]
[327082420,1715796638574,-500.0,0.00019999,2]
[327082421,1715796638583,-500.0,0.00019999,2]
[327082422,1715796638593,-500.0,0.00019999,2]
[327082423,1715796638602,-500.0,0.00019999,2]
[327082424,1715796638614,-500.0,0.00019999,2]
[327082425,1715796638623,-348.67376632,0.00019999,2]
[327082426,1715796638632,-500.0,0.00019999,2]
[327082427,1715796638641,-543.66495657,0.00019999,2]
[327082428,1715796638649,-543.66495657,0.00019999,2]
[327082429,1715796638660,-2068.94375184,0.0002,2]
[327082430,1715796638670,-1825.79160865,0.0002,2]
[327082431,1715796638684,-658.93879695,0.0002,2]
[327082503,1715796640714,-272.01885997,0.0002,2]
[327082505,1715796640726,-9946.25073443,0.0002,2]
[327082507,1715796640735,-1042.87658213,0.0002,2]
[327082509,1715796640744,-804.96174017,0.0002,2]
[327082511,1715796640755,-2112.09424767,0.0002,2]
[327082514,1715796640767,-16635.37672155,0.0002,2]
[327082517,1715796640776,-383.43908945,0.00020574,2]
[327082520,1715796640785,-429.8,0.00020723,2]
[327082523,1715796640795,-655.0573421,0.00020859,2]
[327082525,1715796640804,-847.58523923,0.000209,2]
[327082527,1715796640813,-500.0,0.00020913,2]
[327082529,1715796640822,-500.88341463,0.00020913,2]
[327082530,1715796640831,-159.91485327,0.00020913,2]
[327082532,1715796640840,-150.0,0.00020987,2]
[327082534,1715796640850,-150.0,0.00020987,2]
[327082536,1715796640859,-150.0,0.00020987,2]
[327082538,1715796640868,-495.0,0.00020987,2]
[327082540,1715796640877,-9324.34653176,0.00021,2]
[327082542,1715796640887,-158.73352691,0.0002104,2]
[327082544,1715796640899,-441.26647309,0.0002104,2]
[327082546,1715796640908,-33.80818187,0.00021041,2]
[327082549,1715796640920,-170.45318723,0.00021041,2]
[327082551,1715796640929,-429.8,0.00021221,2]
[327082553,1715796640938,-600.0,0.00021259,2]
[327082554,1715796640947,-355.55227039,0.00021284,2]
[327082556,1715796640956,-2064.61434666,0.00021358,2]
[327082558,1715796640965,-888.21620362,0.00021382,2]
[327082560,1715796640974,-3060.90965728,0.00021383,2]
[327082562,1715796640983,-210.37937533,0.00021383,2]
[327082564,1715796640992,-5537.24943138,0.00021384,3]
[327082566,1715796641002,-1056.92606583,0.00021384,2]
[327082568,1715796641018,-718.7949124,0.00021384,2]
[327082570,1715796641027,-156.57106069,0.00021384,2]
[327082572,1715796641037,-834.20724205,0.00021384,2]
[327082574,1715796641046,-155.10301726,0.00021384,2]
[327082576,1715796641059,-1493.78708353,0.00021384,2]
[327082578,1715796641067,-1422.81689669,0.00021384,2]
[327082580,1715796641077,-412.83760204,0.00021384,2]
[327082582,1715796641087,-904.23695715,0.00021384,2]
[327082584,1715796641096,-491.91161374,0.00021384,2]
[327082585,1715796641105,-1578.19645453,0.00021384,2]
[327082587,1715796641115,-275.04958372,0.00021384,2]
[327082589,1715796641124,-274.06127125,0.00021384,2]
[327082591,1715796641134,-1334.39893068,0.00021384,2]
[327082593,1715796641143,-216.55963645,0.00021384,2]
[327082595,1715796641153,-329.30707971,0.00021384,2]
[327082597,1715796641162,-155.22983648,0.00021384,2]
[327082599,1715796641172,-1015.70905988,0.00021384,2]
[327082601,1715796641182,-1044.35432068,0.00021384,2]
[327082603,1715796641191,-7242.99515338,0.00021384,2]
[327082990,1715796663526,3688.16204003,0.00017975,2]
[327082992,1715797215276,150.80395486,0.00024664,120]
[327082993,1715797516218,156.36643608,9.999e-05,2]
[327082994,1715797529728,181.42014251,9.999e-05,2]
[327082995,1715797645112,-2932.53313661,0.00018785,2]
[327082996,1715797648166,-6623.79792197,0.00018785,2]
[327082997,1715797648188,-6979.45787162,0.00018786,2]
[327082998,1715797648209,-163.97973836,0.000189,2]
[327082999,1715797648229,-1000.0,0.00019,2]
[327083000,1715797648251,-3231.4735078,0.00019164,2]
[327083001,1715797648272,-178.400235,0.00019178,2]
[327083002,1715797648293,-178.400235,0.00019178,2]
[327083003,1715797648317,-291.3641065,0.00019284,2]
[327083004,1715797648341,-1000.0,0.0002,2]
[327083005,1715797648364,-181.42014251,0.00020693,2]
[327083006,1715797648385,-358.1,0.00020694,2]
[327083007,1715797648409,-150.0,0.00020694,2]
[327083008,1715797648430,-12703.0,0.00020913,2]
[327083009,1715797648450,-1515.2548497,0.00021,2]
[327083010,1715797648470,-5018.55402374,0.00021,2]
[327083011,1715797648639,-600.0,0.0002104,2]
[327083012,1715797648665,-500.0,0.00021122,2]
[327083013,1715797648689,-500.0,0.00021122,2]
[327083014,1715797648713,-500.0,0.00021122,2]
[327083015,1715797648737,-500.0,0.00021122,2]
[327083016,1715797648760,-500.0,0.00021122,2]
[327083017,1715797648783,-500.0,0.00021122,2]
[327083018,1715797648806,-500.0,0.00021122,2]
[327083019,1715797648829,-500.0,0.00021122,2]
[327083020,1715797648852,-500.0,0.00021122,2]
[327083021,1715797648875,-500.0,0.00021122,2]
[327083022,1715797648898,-500.0,0.00021122,2]
[327083023,1715797648921,-500.0,0.00021122,2]
[327083024,1715797648943,-500.0,0.00021122,2]
[327083025,1715797648966,-500.0,0.00021122,2]
[327083026,1715797648989,-500.0,0.00021122,2]
[327083027,1715797649013,-500.0,0.00021122,2]
[327083028,1715797649035,-500.0,0.00021122,2]
[327083029,1715797649059,-500.0,0.00021122,2]
[327083030,1715797649083,-500.0,0.00021122,2]
[327083031,1715797649106,-500.0,0.00021122,2]
[327083032,1715797649128,-500.0,0.00021122,2]
[327083033,1715797649153,-500.0,0.00021122,2]
[327083034,1715797649176,-500.0,0.00021122,2]
[327083035,1715797649199,-500.0,0.00021122,2]
[327083036,1715797649222,-500.0,0.00021122,2]
[327083037,1715797649245,-500.0,0.00021122,2]
[327083038,1715797649268,-500.0,0.00021122,2]
[327083039,1715797649291,-500.0,0.00021122,2]
[327083040,1715797649313,-500.0,0.00021122,2]
[327083041,1715797649341,-500.0,0.00021122,2]
[327083042,1715797649365,-500.0,0.00021122,2]
[327083043,1715797649386,-500.0,0.00021122,2]
[327083044,1715797649412,-500.0,0.00021122,2]
[327083045,1715797649435,-500.0,0.00021122,2]
[327083046,1715797649460,-500.0,0.00021122,2]
[327083047,1715797649482,-500.0,0.00021122,2]
[327083048,1715797649503,-500.0,0.00021122,2]
[327083049,1715797649526,-500.0,0.00021122,2]
[327083050,1715797649549,-500.0,0.00021122,2]
[327083051,1715797649571,-219.37636854,0.00021122,2]
[327083052,1715797649593,-500.0,0.00021122,2]
[327083053,1715797649616,-500.0,0.00021122,2]
[327083054,1715797649643,-500.0,0.00021122,2]
[327083055,1715797649665,-500.0,0.00021122,2]
[327083056,1715797649687,-500.0,0.00021122,2]
[327083057,1715797649708,-500.0,0.00021122,2]
[327083058,1715797649730,-500.0,0.00021122,2]
[327083059,1715797649751,-500.0,0.00021122,2]
[327083060,1715797649773,-500.0,0.00021122,2]
[327083061,1715797649794,-500.0,0.00021122,2]
[327083062,1715797649816,-500.0,0.00021122,2]
[327083063,1715797649837,-500.0,0.00021122,2]
[327083064,1715797649857,-500.0,0.00021122,2]
[327083065,1715797649878,-500.0,0.00021122,2]
[327083066,1715797649902,-500.0,0.00021122,2]
[327083067,1715797649926,-500.0,0.00021122,2]
[327083068,1715797649947,-500.0,0.00021122,2]
[327083069,1715797649969,-500.0,0.00021122,2]
[327083070,1715797649994,-155.70921922,0.00021122,2]
[327083071,1715797650014,-495.0,0.00021126,2]
[327083072,1715797650034,-150.0,0.00021126,2]
[327083073,1715797650055,-358.1,0.00021195,2]
[327083074,1715797650075,-150.0,0.00021195,2]
[327083075,1715797650095,-3935.00798279,0.00021235,2]
[327083076,1715797650116,-600.0,0.00021259,2]
[327083077,1715797650136,-237.10073806,0.00021367,2]
[327083078,1715797650158,-282.8206514,0.00021368,2]
[327083079,1715797650177,-99925.08539965,0.00021369,2]
[327083101,1715797834721,-194.24273766,0.00019269,2]
[327083102,1715797834732,-3663.47744576,0.00019536,2]
[327083103,1715797834742,-9556.33105858,0.00019659,2]
[327083104,1715797834752,-3663.47744576,0.00019751,2]
[327083105,1715797834762,-12703.0,0.0002,2]
[327083106,1715797834771,-3663.47744576,0.00020123,2]
[327083107,1715797834782,-2584.42917968,0.00020547,2]